fUST/lending_fUST_20250126
["ID","MTS","AMOUNT","RATE_DAILY","PERIOD"]
[350390351,1737825034013,-500.0,0.00016438,2]
[350390353,1737825034023,-500.0,0.00016438,2]
[350390355,1737825034033,-500.0,0.00016438,2]
[350390357,1737825034044,-1196.13,0.00016438,2]
[350390359,1737825034053,-471.19969773,0.00016438,2]
[350390361,1737825034063,-500.0,0.00016438,2]
[350390363,1737825034074,-500.0,0.00016438,2]
[350390365,1737825034084,-500.0,0.00016438,2]
[350390367,1737825034094,-500.0,0.00016438,2]
[350390369,1737825034103,-500.0,0.00016438,2]
[350390370,1737825034113,-517.1867624,0.00016438,2]
[350390372,1737825034123,-1101.21,0.00016438,2]
[350390375,1737825034134,-6813.33,0.00016438,2]
[350390376,1737825034144,-500.0,0.00016438,2]
[350390378,1737825034155,-500.0,0.00016438,2]
[350390380,1737825034165,-500.0,0.00016438,2]
[350390383,1737825034175,-500.0,0.00016438,2]
[350390385,1737825034185,-500.0,0.00016438,2]
[350390386,1737825034195,-1055.51,0.00016438,2]
[350390388,1737825034206,-642.6,0.00016438,2]
[350390390,1737825034217,-500.0,0.00016438,2]
[350390392,1737825034227,-528.79,0.00016438,2]
[350390395,1737825034239,-562.49,0.00016438,2]
[350390397,1737825034250,-500.0,0.00016438,2]
[350390399,1737825034260,-500.0,0.00016438,2]
[350390401,1737825034270,-151.0,0.00016438,2]
[350390403,1737825034280,-500.0,0.00016438,2]
[350390405,1737825034290,-500.0,0.00016438,2]
[350390407,1737825034299,-500.0,0.00016438,2]
[350390409,1737825034309,-500.0,0.00016438,2]
[350390411,1737825034319,-500.0,0.00016438,2]
[350390413,1737825034329,-19148.92,0.00016438,2]
[350390415,1737825034339,-500.0,0.00016438,2]
[350390417,1737825034349,-500.0,0.00016438,2]
[350390419,1737825034358,-500.0,0.00016438,2]
[350390420,1737825034369,-500.0,0.00016438,2]
[350390423,1737825034379,-1218.39,0.00016438,2]
[350390424,1737825034389,-1490.0,0.00016438,2]
[350390426,1737825034399,-500.0,0.00016438,2]
[350390428,1737825034408,-500.0,0.00016438,2]
[350390430,1737825034418,-500.0,0.00016438,2]
[350390432,1737825034427,-500.0,0.00016438,2]
[350390434,1737825034438,-500.0,0.00016438,2]
[350390436,1737825034447,-151.0,0.00016438,2]
[350390438,1737825034457,-500.0,0.00016438,2]
[350390440,1737825034467,-500.0,0.00016438,2]
[350390442,1737825034476,-500.0,0.00016438,2]
[350390444,1737825034485,-500.0,0.00016438,2]
[350390446,1737825034494,-625.23,0.00016438,2]
[350390448,1737825034504,-500.0,0.00016438,2]
[350390450,1737825034513,-540.29,0.00016438,2]
[350390452,1737825034523,-247.37875887,0.00016438,2]
[350390847,1737825038599,-85.38608166,0.00016438,2]
[350390849,1737825038609,-1334.62,0.00016438,2]
[350390851,1737825038619,-500.0,0.00016438,2]
[350390854,1737825038628,-500.0,0.00016438,2]
[350390856,1737825038638,-151.0,0.00016438,2]
[350390858,1737825038647,-102.33053908,0.00016438,2]
[350392050,1737825214531,400.0,0.00013973,2]
[350392053,1737825448795,730.600344,0.00013699,2]
[350392054,1737825473648,-197.00913,0.00015357,2]
[350392055,1737825473675,-226.778783,0.00015513,2]
[350392056,1737825473700,-576.212087,0.00016273,2]
[350392057,1737825504391,763.56,0.00010959,2]
[350392094,1737826232895,-639.1101217,0.0001513,2]
[350392095,1737826232905,-639.1101217,0.00015438,2]
[350392096,1737826232915,-161.363,0.0001562,2]
[350392097,1737826232924,-200.0,0.0001612,5]
[350392098,1737826232933,-303.3970525,0.00016273,2]
[350392099,1737826232947,-166.3837524,0.00016338,2]
[350392100,1737826232959,-300.0,0.00016436,2]
[350392101,1737826232971,-151.0,0.00016437,2]
[350392102,1737826232983,-350.0,0.00016437,2]
[350392103,1737826232995,-250.0,0.00016437,2]
[350392104,1737826233007,-277.15418014,0.00016437,2]
[350392106,1737826233019,-500.0,0.00016437,2]
[350392107,1737826233030,-500.0,0.00016437,2]
[350392108,1737826233043,-500.0,0.00016437,2]
[350392109,1737826233055,-184.29773378,0.00016437,2]
[350392110,1737826233066,-40.37461001,0.00016437,2]
[350392111,1737826233081,-459.62538999,0.00016437,2]
[350392112,1737826233093,-500.0,0.00016437,2]
[350392113,1737826233105,-617.12239123,0.00016437,2]
[350392114,1737826233117,-500.0,0.00016437,2]
[350392115,1737826233128,-632.14812006,0.00016437,2]
[350392116,1737826233139,-579.30202185,0.00016437,2]
[350392117,1737826233151,-500.0,0.00016438,2]
[350392118,1737826233163,-500.0,0.00016438,2]
[350392119,1737826233175,-504.62806989,0.00016438,2]
[350392120,1737826233186,-500.0,0.00016438,2]
[350392121,1737826233198,-500.0,0.00016438,2]
[350392122,1737826233209,-500.0,0.00016438,2]
[350392123,1737826233220,-500.0,0.00016438,2]
[350392124,1737826233231,-462.05030627,0.00016438,2]
[350392129,1737826238638,-252.15239808,0.00016274,2]
[350392130,1737826238696,-791.88618055,0.00016274,2]
[350392131,1737826238709,-509.765,0.00016274,2]
[350392132,1737826238722,-3152.00370294,0.00016274,2]
[350392133,1737826238734,-37.94969373,0.00016438,2]
[350392134,1737826238745,-50.04660333,0.00016438,2]
[350392135,1737826238758,-453.71334715,0.00016438,2]
[350392136,1737826238769,-500.0,0.00016438,2]
[350392137,1737826238779,-500.0,0.00016438,2]
[350392138,1737826238790,-500.0,0.00016438,2]
[350392139,1737826238801,-500.0,0.00016438,2]
[350392140,1737826238812,-898.92,0.00016438,2]
[350392141,1737826238823,-515.21621403,0.00016438,2]
[350392142,1737826238834,-500.0,0.00016438,2]
[350392143,1737826238845,-500.0,0.00016438,2]
[350392144,1737826238860,-151.0,0.00016438,2]
[350392145,1737826238878,-151.0,0.00016438,2]
[350392146,1737826238888,-151.0,0.00016438,2]
[350392147,1737826238897,-500.0,0.00016438,2]
[350392148,1737826238907,-500.0,0.00016438,2]
[350392149,1737826238916,-500.0,0.00016438,2]
[350392150,1737826238926,-500.0,0.00016438,2]
[350392151,1737826238935,-500.0,0.00016438,2]
[350392152,1737826238945,-500.0,0.00016438,2]
[350392153,1737826239146,-500.0,0.00016438,2]
[350392154,1737826239161,-500.0,0.00016438,2]
[350392155,1737826239171,-500.0,0.00016438,2]
[350392156,1737826239184,-500.0,0.00016438,2]
[350392157,1737826239195,-500.0,0.00016438,2]
[350392158,1737826239204,-500.0,0.00016438,2]
[350392159,1737826239214,-500.0,0.00016438,2]
[350392160,1737826239224,-910.12,0.00016438,2]
[350392161,1737826239234,-500.0,0.00016438,2]
[350392162,1737826239244,-433.51792913,0.00016438,2]
[350392163,1737826239367,-66.48207087,0.00016438,2]
[350392164,1737826239376,-312.89619761,0.00016438,2]
[350392165,1737826239385,-500.0,0.00016438,2]
[350392166,1737826239395,-151.0,0.00016438,2]
[350392167,1737826239404,-500.0,0.00016438,2]
[350392168,1737826239413,-500.0,0.00016438,2]
[350392169,1737826239423,-500.0,0.00016438,2]
[350392170,1737826239432,-500.0,0.00016438,2]
[350392171,1737826239442,-541.26,0.00016438,2]
[350392172,1737826239451,-500.0,0.00016438,2]
[350392173,1737826239461,-500.0,0.00016438,2]
[350392174,1737826239471,-500.0,0.00016438,2]
[350392175,1737826239480,-500.0,0.00016438,2]
[350392176,1737826239489,-500.0,0.00016438,2]
[350392177,1737826239500,-500.0,0.00016438,2]
[350392178,1737826239509,-500.0,0.00016438,2]
[350392179,1737826239519,-500.0,0.00016438,2]
[350392180,1737826239528,-500.0,0.00016438,2]
[350392181,1737826239542,-500.0,0.00016438,2]
[350392182,1737826239551,-1146.29,0.00016438,2]
[350392183,1737826239561,-500.0,0.00016438,2]
[350392184,1737826239570,-500.0,0.00016438,2]
[350392185,1737826239581,-505.08555756,0.00016438,2]
[350392186,1737826239591,-500.0,0.00016438,2]
[350392187,1737826239601,-501.4817138,0.00016438,2]
[350392188,1737826239611,-500.0,0.00016438,2]
[350392189,1737826239621,-500.0,0.00016438,2]
[350392190,1737826239630,-500.0,0.00016438,2]
[350392191,1737826239640,-500.0,0.00016438,2]
[350392192,1737826239649,-500.0,0.00016438,2]
[350392193,1737826239658,-500.0,0.00016438,2]
[350392194,1737826239667,-500.0,0.00016438,2]
[350392195,1737826239676,-500.0,0.00016438,2]
[350392196,1737826239686,-508.5352085,0.00016438,2]
[350392197,1737826239695,-576.58,0.00016438,2]
[350392198,1737826239704,-500.0,0.00016438,2]
[350392199,1737826239713,-500.0,0.00016438,2]
[350392200,1737826239723,-500.0,0.00016438,2]
[350392201,1737826239732,-500.0,0.00016438,2]
[350392202,1737826239741,-500.0,0.00016438,2]
[350392203,1737826239751,-152.36687066,0.00016438,2]
[350392204,1737826239760,-500.0,0.00016438,2]
[350392205,1737826239769,-500.0,0.00016438,2]
[350392206,1737826239779,-229.27798664,0.00016438,2]
[350392207,1737826239788,-151.0,0.00016438,2]
[350392208,1737826239797,-500.0,0.00016438,2]
[350392209,1737826239807,-444.07187465,0.00016438,2]
[350392210,1737826239826,-62.68812535,0.00016438,2]
[350392211,1737826239835,-575.22873181,0.00016438,2]
[350392224,1737826241006,-887.49126819,0.00016438,2]
[350392225,1737826241015,-500.0,0.00016438,2]
[350392226,1737826241027,-500.0,0.00016438,2]
[350392227,1737826241036,-500.0,0.00016438,2]
[350392228,1737826241045,-151.0,0.00016438,2]
[350392229,1737826241055,-181.002428,0.00016438,2]
[350392230,1737826241065,-29.74292099,0.00016438,2]
[350392264,1737826243778,-154.01,0.00016174,2]
[350392265,1737826243787,-109.53074221,0.00016437,2]
[350392266,1737826243830,-171.39680459,0.00016437,2]
[350392267,1737826243839,-524.48707901,0.00016438,2]
[350392268,1737826243848,-2450.5161164,0.00016438,2]
[350392279,1737826246822,-1917.7499997,0.00016438,2]
[350392282,1737826387317,400.0,0.00013973,2]
[350392283,1737826444893,584.480275,0.00013699,2]
[350392284,1737826485558,500.0,0.00024,120]
[350392285,1737826569147,500.0,0.00024,120]
[350392301,1737827292767,467.58422,0.00013699,2]
[350392302,1737827399102,400.0,0.00013973,2]
[350392342,1737827431990,-153.752,0.00015464,2]
[350392343,1737827432001,-153.752,0.0001562,2]
[350392344,1737827432012,-902.74208456,0.00016338,2]
[350392346,1737827432022,-166.3837524,0.00016338,2]
[350392348,1737827432032,-300.0,0.00016413,2]
[350392350,1737827432042,-9848.98572628,0.00016414,2]
[350392351,1737827432051,-179.68026569,0.00016437,2]
[350392352,1737827432061,-500.0,0.00016437,2]
[350392353,1737827432070,-178.54165308,0.00016437,2]
[350392354,1737827432084,-321.45834692,0.00016437,2]
[350392355,1737827432094,-500.0,0.00016437,2]
[350392356,1737827432103,-500.0,0.00016437,2]
[350392357,1737827432113,-500.0,0.00016437,2]
[350392358,1737827432122,-500.0,0.00016437,2]
[350392359,1737827432132,-500.0,0.00016437,2]
[350392361,1737827432141,-500.0,0.00016437,2]
[350392363,1737827432151,-500.0,0.00016437,2]
[350392364,1737827432160,-500.0,0.00016437,2]
[350392365,1737827432170,-256.09936099,0.00016437,2]
[350392366,1737827432179,-300.0,0.00016437,2]
[350392367,1737827432188,-285.65437952,0.00016437,2]
[350392368,1737827432198,-500.0,0.00016437,2]
[350392369,1737827432207,-500.0,0.00016437,2]
[350392370,1737827432217,-500.0,0.00016437,2]
[350392371,1737827432227,-500.0,0.00016437,2]
[350392372,1737827432236,-305.30292733,0.00016437,2]
[350392373,1737827432246,-500.0,0.00016437,2]
[350392374,1737827432255,-500.00000001,0.00016437,2]
[350392375,1737827432265,-500.0,0.00016437,2]
[350392376,1737827432275,-473.77978941,0.00016438,2]
[350392377,1737827432284,-501.24911156,0.00016438,2]
[350392378,1737827432293,-500.0,0.00016438,2]
[350392379,1737827432303,-501.04227712,0.00016438,2]
[350392380,1737827432312,-500.0,0.00016438,2]
[350392381,1737827432322,-500.54045446,0.00016438,2]
[350392382,1737827432332,-500.0,0.00016438,2]
[350392383,1737827432341,-500.0,0.00016438,2]
[350392384,1737827432351,-500.0,0.00016438,2]
[350392385,1737827432361,-500.0,0.00016438,2]
[350392386,1737827432370,-500.0,0.00016438,2]
[350392387,1737827432380,-500.0,0.00016438,2]
[350392388,1737827432390,-372.92710514,0.00016438,2]
[350392389,1737827432403,-127.07289486,0.00016438,2]
[350392390,1737827432412,-443.00583786,0.00016438,2]
[350392391,1737827432427,-56.99416214,0.00016438,2]
[350392392,1737827432437,-280.12355074,0.00016438,2]
[350392409,1737827437825,-219.87644926,0.00016438,2]
[350392411,1737827437837,-500.0,0.00016438,2]
[350392413,1737827437846,-500.0,0.00016438,2]
[350392415,1737827437856,-500.0,0.00016438,2]
[350392417,1737827437865,-616.62541249,0.00016438,2]
[350392419,1737827437875,-500.0,0.00016438,2]
[350392421,1737827437885,-500.0,0.00016438,2]
[350392423,1737827437894,-151.0,0.00016438,2]
[350392425,1737827437904,-156.92627221,0.00016438,2]
[350392427,1737827437919,-343.07372779,0.00016438,2]
[350392429,1737827437929,-500.0,0.00016438,2]
[350392432,1737827437939,-500.0,0.00016438,2]
[350392434,1737827437948,-500.0,0.00016438,2]
[350392436,1737827437961,-500.0,0.00016438,2]
[350392438,1737827437970,-284.33402841,0.00016438,2]
[350392440,1737827437980,-500.0,0.00016438,2]
[350392442,1737827437989,-362.39686456,0.00016438,2]
[350392445,1737827437999,-151.0,0.00016438,2]
[350392448,1737827438010,-861.47,0.00016438,2]
[350392450,1737827438019,-500.0,0.00016438,2]
[350392452,1737827438028,-500.0,0.00016438,2]
[350392454,1737827438038,-500.0,0.00016438,2]
[350392456,1737827438047,-500.0,0.00016438,2]
[350392458,1737827438057,-500.0,0.00016438,2]
[350392460,1737827438066,-500.0,0.00016438,2]
[350392462,1737827438076,-500.0,0.00016438,2]
[350392464,1737827438086,-500.0,0.00016438,2]
[350392466,1737827438095,-500.0,0.00016438,2]
[350392468,1737827438104,-500.0,0.00016438,2]
[350392470,1737827438113,-500.0,0.00016438,2]
[350392472,1737827438123,-872.2,0.00016438,2]
[350392474,1737827438132,-500.0,0.00016438,2]
[350392476,1737827438141,-500.0,0.00016438,2]
[350392478,1737827438151,-500.0,0.00016438,2]
[350392480,1737827438161,-500.0,0.00016438,2]
[350392482,1737827438172,-165.01997913,0.00016438,2]
[350392484,1737827438185,-334.98002087,0.00016438,2]
[350392486,1737827438195,-321.59945537,0.00016438,2]
[350392488,1737827438204,-500.0,0.00016438,2]
[350392490,1737827438213,-500.0,0.00016438,2]
[350392492,1737827438223,-500.0,0.00016438,2]
[350392494,1737827438232,-518.71,0.00016438,2]
[350392496,1737827438241,-494.01090062,0.00016438,2]
[350392499,1737827438260,-5.98909938,0.00016438,2]
[350392501,1737827438269,-500.0,0.00016438,2]
[350392503,1737827438278,-500.0,0.00016438,2]
[350392505,1737827438288,-500.0,0.00016438,2]
[350392507,1737827438297,-500.0,0.00016438,2]
[350392509,1737827438307,-1098.53,0.00016438,2]
[350392511,1737827438316,-500.0,0.00016438,2]
[350392513,1737827438325,-500.0,0.00016438,2]
[350392515,1737827438334,-500.0,0.00016438,2]
[350392517,1737827438344,-500.0,0.00016438,2]
[350392519,1737827438353,-500.0,0.00016438,2]
[350392521,1737827438362,-500.0,0.00016438,2]
[350392523,1737827438372,-500.0,0.00016438,2]
[350392525,1737827438381,-500.0,0.00016438,2]
[350392527,1737827438391,-312.51,0.00016438,2]
[350392529,1737827438400,-42.15804797,0.00016438,2]
[350392532,1737827438412,-457.84195203,0.00016438,2]
[350392534,1737827438422,-506.69248571,0.00016438,2]
[350392536,1737827438431,-500.0,0.00016438,2]
[350392538,1737827438440,-522.43014898,0.00016438,2]
[350392540,1737827438449,-500.0,0.00016438,2]
[350392542,1737827438458,-500.0,0.00016438,2]
[350392544,1737827438467,-1693.23,0.00016438,2]
[350392546,1737827438476,-500.0,0.00016438,2]
[350392548,1737827438486,-500.0,0.00016438,2]
[350392550,1737827438500,-500.0,0.00016438,2]
[350392552,1737827438509,-859.51,0.00016438,2]
[350392554,1737827438518,-500.0,0.00016438,2]
[350392556,1737827438527,-500.0,0.00016438,2]
[350392558,1737827438536,-500.0,0.00016438,2]
[350392560,1737827438546,-500.0,0.00016438,2]
[350392562,1737827438555,-500.0,0.00016438,2]
[350392564,1737827438565,-2895.04,0.00016438,2]
[350392566,1737827438574,-500.0,0.00016438,2]
[350392568,1737827438584,-500.0,0.00016438,2]
[350392570,1737827438594,-809.57,0.00016438,2]
[350392572,1737827438606,-222.23,0.00016438,2]
[350392574,1737827438616,-500.0,0.00016438,2]
[350392576,1737827438625,-500.0,0.00016438,2]
[350392578,1737827438635,-674.42,0.00016438,2]
[350392580,1737827438645,-500.0,0.00016438,2]
[350392583,1737827438655,-500.0,0.00016438,2]
[350392585,1737827438664,-1586.72,0.00016438,2]
[350392587,1737827438673,-500.0,0.00016438,2]
[350392589,1737827438683,-500.0,0.00016438,2]
[350392591,1737827438693,-500.0,0.00016438,2]
[350392593,1737827438702,-500.0,0.00016438,2]
[350392595,1737827438711,-1094.96,0.00016438,2]
[350392597,1737827438721,-500.0,0.00016438,2]
[350392599,1737827438730,-500.0,0.00016438,2]
[350392601,1737827438739,-500.0,0.00016438,2]
[350392603,1737827438748,-573.39,0.00016438,2]
[350392605,1737827438757,-500.0,0.00016438,2]
[350392607,1737827438766,-500.0,0.00016438,2]
[350392609,1737827438775,-6607.77,0.00016438,2]
[350392611,1737827438784,-500.0,0.00016438,2]
[350392613,1737827438794,-500.0,0.00016438,2]
[350392615,1737827438803,-500.0,0.00016438,2]
[350392617,1737827438812,-500.0,0.00016438,2]
[350392619,1737827438820,-1076.16,0.00016438,2]
[350392621,1737827438830,-500.0,0.00016438,2]
[350392623,1737827438840,-500.0,0.00016438,2]
[350392625,1737827438849,-500.0,0.00016438,2]
[350392626,1737827438858,-500.0,0.00016438,2]
[350392627,1737827438867,-500.0,0.00016438,2]
[350392628,1737827438876,-500.0,0.00016438,2]
[350392629,1737827438886,-500.0,0.00016438,2]
[350392630,1737827438895,-500.0,0.00016438,2]
[350392631,1737827438904,-151.0,0.00016438,2]
[350392632,1737827438915,-173.798688,0.00016438,2]
[350392633,1737827438928,-1422.61,0.00016438,2]
[350392634,1737827438937,-170.39137703,0.00016438,2]
[350392635,1737827438946,-151.0,0.00016438,2]
[350392636,1737827438958,-547.14,0.00016438,2]
[350392637,1737827438971,-151.0,0.00016438,2]
[350392638,1737827438981,-151.0,0.00016438,2]
[350392639,1737827438990,-151.0,0.00016438,2]
[350392641,1737827439001,-151.0,0.00016438,2]
[350392643,1737827439010,-151.0,0.00016438,2]
[350392645,1737827439020,-551.97,0.00016438,2]
[350392647,1737827439030,-506.48,0.00016438,2]
[350392649,1737827439039,-1415.11,0.00016438,2]
[350392651,1737827439048,-500.0,0.00016438,2]
[350392653,1737827439057,-500.0,0.00016438,2]
[350392655,1737827439067,-500.0,0.00016438,2]
[350392658,1737827439077,-500.0,0.00016438,2]
[350392660,1737827439086,-2552.86,0.00016438,2]
[350392661,1737827439095,-500.0,0.00016438,2]
[350392664,1737827439105,-500.0,0.00016438,2]
[350392666,1737827439114,-500.0,0.00016438,2]
[350392668,1737827439123,-500.0,0.00016438,2]
[350392670,1737827439133,-384.41,0.00016438,2]
[350392672,1737827439143,-151.0,0.00016438,2]
[350392674,1737827439152,-151.0,0.00016438,2]
[350392676,1737827439161,-151.0,0.00016438,2]
[350392678,1737827439170,-151.0,0.00016438,2]
[350392680,1737827439179,-19665.7,0.00016438,2]
[350392682,1737827439191,-151.0,0.00016438,2]
[350392684,1737827439200,-151.0,0.00016438,2]
[350392686,1737827439210,-151.0,0.00016438,2]
[350392688,1737827439219,-151.0,0.00016438,2]
[350392690,1737827439229,-500.0,0.00016438,2]
[350392692,1737827439239,-243.606972,0.00016438,2]
[350392694,1737827439248,-500.0,0.00016438,2]
[350392696,1737827439257,-454.59117363,0.00016438,2]
[350392698,1737827439266,-500.0,0.00016438,2]
[350392700,1737827439275,-1298.76,0.00016438,2]
[350392702,1737827439284,-1280.97,0.00016438,2]
[350392704,1737827439294,-503.54052077,0.00016438,2]
[350392706,1737827439304,-500.0,0.00016438,2]
[350392708,1737827439313,-500.0,0.00016438,2]
[350392710,1737827439322,-500.0,0.00016438,2]
[350392712,1737827439332,-1000.0,0.00016438,7]
[350392714,1737827439341,-673.68,0.00016438,2]
[350392716,1737827439351,-665.58,0.00016438,2]
[350392718,1737827439360,-500.0,0.00016438,2]
[350392720,1737827439369,-182.40436957,0.00016438,2]
[350392722,1737827439378,-556.61,0.00016438,2]
[350392724,1737827439387,-504.96751022,0.00016438,2]
[350392726,1737827439396,-1587.33,0.00016438,2]
[350392728,1737827439405,-500.0,0.00016438,2]
[350392730,1737827439415,-500.0,0.00016438,2]
[350392732,1737827439424,-500.0,0.00016438,2]
[350392734,1737827439434,-835.55,0.00016438,2]
[350392736,1737827439443,-500.0,0.00016438,2]
[350392738,1737827439453,-886.95,0.00016438,2]
[350392740,1737827439462,-690.69,0.00016438,2]
[350392742,1737827439472,-500.0,0.00016438,2]
[350392745,1737827439481,-7180.74,0.00016438,2]
[350392747,1737827439490,-500.0,0.00016438,2]
[350392749,1737827439499,-907.76,0.00016438,2]
[350392751,1737827439508,-500.0,0.00016438,2]
[350392753,1737827439517,-500.0,0.00016438,2]
[350392755,1737827439528,-500.0,0.00016438,2]
[350392757,1737827439537,-981.99,0.00016438,2]
[350392759,1737827439547,-500.0,0.00016438,2]
[350392760,1737827439556,-500.0,0.00016438,2]
[350392762,1737827439565,-500.0,0.00016438,2]
[350392764,1737827439575,-615.83,0.00016438,2]
[350392766,1737827439584,-609.95470185,0.00016438,2]
[350392768,1737827439594,-1000.0,0.00016438,2]
[350392771,1737827439604,-151.0,0.00016438,2]
[350392772,1737827439613,-151.0,0.00016438,2]
[350392774,1737827439623,-500.0,0.00016574,2]
[350392777,1737827439635,-223.26817065,0.00016574,2]
[350392778,1737827439645,-247.33003376,0.00016574,2]
[350392780,1737827439655,-292.05924966,0.00016574,2]
[350392783,1737827439664,-500.0,0.00016575,2]
[350392784,1737827439674,-500.0,0.00016575,2]
[350392786,1737827439683,-500.0,0.00016575,2]
[350392788,1737827439692,-500.0,0.00016575,2]
[350392790,1737827439702,-500.0,0.00016575,2]
[350392792,1737827439711,-500.0,0.00016575,2]
[350392794,1737827439720,-500.0,0.00016575,2]
[350392796,1737827439730,-500.0,0.00016575,2]
[350392798,1737827439739,-478.5155205,0.00016575,2]
[350392801,1737827439749,-500.0,0.00016575,2]
[350392803,1737827439758,-500.0,0.00016575,2]
[350392804,1737827439767,-500.0,0.00016575,2]
[350392806,1737827439776,-500.0,0.00016575,2]
[350392808,1737827439786,-500.0,0.00016575,2]
[350392810,1737827439795,-500.0,0.00016575,2]
[350392812,1737827439804,-861.47,0.00016575,2]
[350392814,1737827439813,-500.0,0.00016575,2]
[350392831,1737827439976,-223.86094105,0.00016575,2]
[350392833,1737827439986,-500.0,0.00016575,2]
[350392835,1737827439997,-500.0,0.00016575,2]
[350392837,1737827440006,-500.0,0.00016575,2]
[350392839,1737827440015,-500.0,0.00016575,2]
[350392841,1737827440025,-500.0,0.00016575,2]
[350392843,1737827440034,-500.0,0.00016575,2]
[350392845,1737827440043,-500.0,0.00016575,2]
[350392847,1737827440052,-500.0,0.00016575,2]
[350392849,1737827440062,-500.0,0.00016575,2]
[350392851,1737827440071,-872.2,0.00016575,2]
[350392853,1737827440080,-500.0,0.00016575,2]
[350392855,1737827440091,-481.30832294,0.00016575,2]
[350392870,1737827440224,-18.69167706,0.00016575,2]
[350392872,1737827440234,-500.0,0.00016575,2]
[350392874,1737827440243,-500.0,0.00016575,2]
[350392876,1737827440253,-500.0,0.00016575,2]
[350392878,1737827440262,-500.0,0.00016575,2]
[350392880,1737827440271,-500.0,0.00016575,2]
[350392882,1737827440280,-500.0,0.00016575,2]
[350392884,1737827440289,-150.99910796,0.00016575,2]
[350392886,1737827440310,-367.71089204,0.00016575,2]
[350392888,1737827440320,-500.0,0.00016575,2]
[350392890,1737827440330,-500.0,0.00016575,2]
[350392892,1737827440341,-191.01625731,0.00016575,2]
[350392895,1737827440358,-308.98374269,0.00016575,2]
[350392897,1737827440369,-500.0,0.00016575,2]
[350392899,1737827440379,-500.0,0.00016575,2]
[350392901,1737827440389,-1098.53,0.00016575,2]
[350392903,1737827440398,-500.0,0.00016575,2]
[350392905,1737827440408,-500.0,0.00016575,2]
[350392907,1737827440419,-500.0,0.00016575,2]
[350392909,1737827440428,-500.0,0.00016575,2]
[350392911,1737827440438,-1693.23,0.00016575,2]
[350392913,1737827440448,-500.0,0.00016575,2]
[350392915,1737827440457,-500.0,0.00016575,2]
[350392917,1737827440468,-859.51,0.00016575,2]
[350392919,1737827440478,-500.0,0.00016575,2]
[350392922,1737827440488,-620.25770786,0.00016575,2]
[350392931,1737827440569,-2274.78229214,0.00016575,2]
[350392933,1737827440580,-500.0,0.00016575,2]
[350392935,1737827440590,-809.57,0.00016575,2]
[350392936,1737827440600,-500.0,0.00016575,2]
[350392939,1737827440610,-500.0,0.00016575,2]
[350392941,1737827440620,-674.42,0.00016575,2]
[350392943,1737827440631,-500.0,0.00016575,2]
[350392944,1737827440640,-865.22770786,0.00016575,2]
[350392947,1737827440653,-500.0,0.00016575,2]
[350393178,1737827442986,-221.49229214,0.00016575,2]
[350393180,1737827442997,-500.0,0.00016575,2]
[350393182,1737827443006,-433.06221524,0.00016575,2]